Cogmind - Beta 13 @@@ ROGUE MODE // 2024.04.11 @ 00:43:38 Player: Flex Pexico Result: Destroyed by as-70173 with Assembled Maul Performance ------------- Evolutions (0) 0 Regions Visited (2) 400 Robots Destroyed (27) 135 Value Destroyed (779) 779 Prototype IDs (0) 0 Alien Tech Used (0) 0 Bonus (0) 0 TOTAL SCORE: 1314 Bonus ------- None Cogmind --------- Core Integrity 0/250 Matter 275/300 Energy 250/250 System Corruption 4% Temperature Warm (149) Movement Core (450) Ox8 Location -10/Mines Parts ------- > --- POWER (1) -------- Ion Engine > --- PROPULSION (2) --- Aluminum Leg > --- UTILITY (2) ------ Large Storage Unit > --- WEAPON (2) ------- Small Laser > --- INVENTORY (15) --- Ion Engine Compact Matter Pod (150) Small Laser Light Assault Rifle Grenade Launcher Peak State ------------ > --- POWER ------------ Ion Engine > --- PROPULSION ------- Light Treads Wheel > --- UTILITY ---------- Large Storage Unit Seismic Detector > --- WEAPON ----------- Medium Laser Light Assault Rifle > --- INVENTORY -------- Light Ion Engine Light Treads Compact Wheel Small Laser Grenade Launcher [Rating: 7] Favorites ----------- Power Ion Engine Engine Ion Engine Propulsion Light Treads Treads Light Treads Leg Aluminum Leg Wheel Wheel Utility Large Storage Unit Device Seismic Detector Storage Large Storage Unit Weapon Light Assault Rifle Energy Gun Small Laser Ballistic Gun Light Assault Rifle Special Weapon Mining Laser Build | -11 -10 -10 ------- Run | Yrd Mat Min Slots Evolved . | . . . Power . | . . . Propulsion . | . . . Utility . | . . . Weapon . | . . . Parts Attached 20 | 6 10 4 Power 4 | 1 2 1 Engine 4 | 1 2 1 Core . | . . . Reactor . | . . . Propulsion 7 | 2 4 1 Treads 3 | 1 2 . Leg 1 | . . 1 Wheel 3 | 1 2 . Hover . | . . . Flight . | . . . Utility 4 | 1 3 . Device 1 | . 1 . Storage 3 | 1 2 . Processor . | . . . Hackware . | . . . Protection . | . . . Artifact . | . . . Weapon 5 | 2 1 2 Energy Gun 3 | 1 1 1 Energy Cannon . | . . . Ballistic Gun 1 | 1 . . Ballistic Cannon . | . . . Launcher . | . . . Special Weapon 1 | . . 1 Impact Weapon . | . . . Slashing Weapon . | . . . Piercing Weapon . | . . . Special Melee Weapon . | . . . Unidentified Prototypes . | . . . Parts Lost 8 | . 5 3 Power 2 | . 2 . Propulsion 4 | . 2 2 Utility 1 | . 1 . Weapon 1 | . . 1 Highest Loss Streak 3 | . 3 2 To Critical Strikes . | . . . Average Slot Usage (%) 84 | . 85 82 Engine 13 | . 13 13 Treads 17 | . 18 13 Leg 2 | . . 8 Wheel 7 | . 8 4 Device 1 | . 1 . Storage 14 | . 14 14 Energy Gun 14 | . 14 14 Ballistic Gun 13 | . 14 11 Naked Turns . | . . . Heaviest Build 29 | 12 29 28 Greatest Support 40 | 20 40 20 Greatest Overweight (x) 8 | 1 2 8 Average Overweight (x) . | . . 1 Largest Inventory Capacity 15 | 8 15 15 Average Capacity 12 | 6 11 15 Most Carried 7 | 2 7 6 Average Carried 4 | 1 4 4 Final Capacity 15 | 8 15 15 Final Carried 5 | 2 4 5 Class Distribution -------------------- 100% | Mutant Dominant Class ---------------- Mutant | -10/Materials Mutant | -10/Mines Resources | -11 -10 -10 ----------- Run | Yrd Mat Min Matter Collected 488 | 264 177 47 Remotely . | . . . Salvage Created 1063 | 73 807 183 Parts 61 | 3 44 14 Haulers Intercepted 1 | . 1 . Recyclers Shooed 2 | 1 . 1 Parts Field Recycled . | . . . Retrieved Matter . | . . . Parts Self-Destructed . | . . . Prevented . | . . . Kills | -11 -10 -10 ------- Run | Yrd Mat Min Combat Hostiles Destroyed 24 | . 18 6 Guns 23 | . 18 5 Cannons 1 | . . 1 Classes Destroyed 6 | 1 4 1 Hauler 1 | . 1 . Recycler 2 | 1 1 . Operator 1 | . 1 . Swarmer 3 | . 3 . Grunt 20 | . 15 5 Assembled 1 | . . 1 Best Kill Streak 4 | 1 4 4 Combat Bots Only 4 | . 4 4 Max Kills in Single Turn 1 | 1 1 1 Gunslinging . | . . . Exploded . | . . . Melee . | . . . Uniques/NPCs Destroyed . | . . . Combat | -11 -10 -10 -------- Run | Yrd Mat Min Hostile Shots Fired 148 | . 90 58 Missed 42 | . 24 18 Damage Taken 1276 | . 727 549 Core 273 | . 121 152 Absorbed by Shields . | . . . Core Remaining (%) 100 | 100 . . Volleys Fired 111 | 4 72 35 Largest 2 | 2 2 2 Hottest 140 | 60 70 140 Shots Fired 200 | 8 144 48 Gun 191 | 8 144 39 Cannon . | . . . Launcher . | . . . Special 9 | . . 9 Kinetic 87 | 4 72 11 Thermal 113 | 4 72 37 Explosive . | . . . Electromagnetic . | . . . Robot Hit Streak 9 | 3 9 8 Robot Miss Streak 3 | 3 3 3 Penetration Max . | . . . Secondary Targets 1 | . 1 . Max Gunslinging Chain 1 | . 1 . Shots Hit Robots 128 | 5 94 29 Core Hits 59 | 2 44 13 Critical Kills . | . . . Critical Parts Destroyed . | . . . Critical Strikes 1 | . 1 . Burn 1 | . 1 . Melee Attacks . | . . . Impact . | . . . Slashing . | . . . Piercing . | . . . Sneak Attacks . | . . . Combat Hostiles . | . . . Follow-up Attacks . | . . . Damage Inflicted 1344 | 44 961 339 Guns 1320 | 44 961 315 Cannons . | . . . Explosions . | . . . Melee . | . . . Ramming . | . . . Kinetic 433 | 22 356 55 Thermal 911 | 22 605 284 Explosive . | . . . Electromagnetic . | . . . Impact . | . . . Slashing . | . . . Piercing . | . . . Highest Corruption 4 | . 4 4 Average Corruption 3 | . 3 4 Corruption Purged . | . . . Corruption Blocked . | . . . Effects 27 | . 15 12 Message Errors 4 | . 3 1 Matter Fused 7 | . 3 4 Heat Flow Errors 4 | . 2 2 Energy Discharges 1 | . 1 . Parts Rejected 2 | . . 2 Data Loss (minor) 5 | . 3 2 Misfires 1 | . 1 . Alerts 1 | . 1 . Weapon Failures 2 | . 1 1 Overload Shots . | . . . Overflow Damage . | . . . Projectiles . | . . . Explosions . | . . . Melee . | . . . Knockbacks . | . . . Impact . | . . . Kinetic . | . . . Secondary . | . . . Self-Inflicted Damage . | . . . Shots . | . . . Rammed . | . . . Targets Rammed . | . . . Kicked . | . . . Crushed . | . . . Highest Temperature 248 | 10 162 248 Average Temperature 62 | 7 48 88 Received Heat Transfer 651 | . 387 264 Siege Activations . | . . . Robots Corrupted . | . . . Combat Hostiles . | . . . Parts Fried . | . . . Impact Corruptions . | . . . Robots Melted . | . . . Combat Hostiles . | . . . Parts Melted 1 | . . 1 Heat Transferred 2350 | 50 1614 686 Parts Sabotaged . | . . . Parts Stolen . | . . . Parts Stripped . | . . . Power Chain Reactions . | . . . Alert | -11 -10 -10 ------- Run | Yrd Mat Min Peak Influence 226 | 5 226 114 Initial 44 | . 3 44 Average 90 | 3 107 64 Maximum Alert Level 1 | . 1 . Low Security (%) 90 | 100 85 100 Level 1 9 | . 14 . Level 2 . | . . . Level 3 . | . . . Level 4 . | . . . Level 5 . | . . . High Security . | . . . Max Security . | . . . Squads Dispatched 4 | . 4 . Investigation 3 | . 3 . Extermination . | . . . Reinforcement 1 | . 1 . Assault . | . . . Garrison . | . . . Intercept . | . . . Searches Triggered . | . . . Construction Impeded . | . . . Haulers Reinforced . | . . . Active Scanning Responses . | . . . Cargo Convoy Interrupts . | . . . Stealth | -11 -10 -10 --------- Run | Yrd Mat Min Distress Signals 1 | . 1 . Communications Jammed . | . . . Distress Signals . | . . . Times Spotted 43 | . 33 10 Peak Tracking Total 5 | . 5 4 Tactical Retreats 2 | . 1 1 Traps | -11 -10 -10 ------- Run | Yrd Mat Min Traps Triggered 5 | . 5 . Indirectly . | . . . Trap Hack Attempts . | . . . Triggered . | . . . Disarmed . | . . . Reprogrammed . | . . . Reused . | . . . Traps Extracted . | . . . Installed . | . . . Triggered . | . . . Machines | -11 -10 -10 ---------- Run | Yrd Mat Min Machines Disabled . | . . . Max in Single Turn . | . . . Machines Repaired . | . . . Machines Dismantled . | . . . Machines Sabotaged . | . . . Overloaded Fab Kills . | . . . Hacking | -11 -10 -10 --------- Run | Yrd Mat Min Machines Accessed 1 | . 1 . Terminals 1 | . 1 . Fabricators . | . . . Repair Stations . | . . . Recycling Units . | . . . Scanalyzers . | . . . Garrison Access . | . . . Total Hacks 2 | . 2 . Successful . | . . . Failed 2 | . 2 . Catastrophic 1 | . 1 . Database Lockouts . | . . . Manual 2 | . 2 . Terminals 2 | . 2 . Fabricators . | . . . Repair Stations . | . . . Recycling Units . | . . . Scanalyzers . | . . . Garrison Access . | . . . Terminal Hacks . | . . . Fabricator Hacks . | . . . Repair Station Hacks . | . . . Recycling Unit Hacks . | . . . Scanalyzer . | . . . Garrison Access Hacks . | . . . Unauthorized Hacks . | . . . Terminals . | . . . Fabricators . | . . . Repair Stations . | . . . Recycling Units . | . . . Scanalyzers . | . . . Garrison Access . | . . . Data Cores Recovered . | . . . Used . | . . . Hacking Detections 1 | . 1 . Full Trace Events 1 | . 1 . Feedback Events . | . . . Feedback Blocked . | . . . Robot Schematics Acquired . | . . . Robots Built . | . . . Authchips . | . . . Time . | . . . Total Robot Build Rating . | . . . Part Schematics Acquired . | . . . Parts Built . | . . . Authchips . | . . . Time . | . . . Total Part Build Rating . | . . . Parts Repaired . | . . . Time . | . . . Parts Recycled . | . . . Recycled Matter . | . . . Retrieved Matter . | . . . Retrieved Components . | . . . Parts Scanalyzed . | . . . Part Schematics Acquired . | . . . Parts Damaged . | . . . Bothacking | -11 -10 -10 ------------ Run | Yrd Mat Min Used RIF Installer . | . . . Robots Hacked . | . . . Non-combat . | . . . Combat . | . . . Robot Hacks Applied . | . . . Relay Couplers Released . | . . . Fabnet Peak Effective % . | . . . Robots Rewired . | . . . Allies Hacked . | . . . Hacks Repelled . | . . . Allies | -11 -10 -10 -------- Run | Yrd Mat Min Total Allies . | . . . Largest Group . | . . . Highest-Rated Group . | . . . Highest-Rated Ally . | . . . Total Orders . | . . . Ally Attacks . | . . . Total Damage . | . . . Kills . | . . . Allies Corrupted . | . . . Allies Melted . | . . . Intel | -11 -10 -10 ------- Run | Yrd Mat Min Robot Analysis Total . | . . . Derelict Logs Recovered . | . . . Drone Launches . | . . . Drone Recoveries . | . . . Exploration | -11 -10 -10 ------------- Run | Yrd Mat Min Turns Passed 1950 | 92 1306 552 Spaces Moved 998 | 80 681 237 Core 19 | 17 . 2 Treads 434 | 2 329 103 Legs 1 | . . 1 Wheels 544 | 61 352 131 Hover . | . . . Flight . | . . . Fastest Speed 50 | 50 95 115 Average Speed 145 | 86 142 172 Slowest Speed 450 | 160 240 450 Overloaded Moves . | . . . Propulsion Burnouts . | . . . Robots Hopped . | . . . Cave-ins Triggered . | . . . Exploration Rate (%) 49 | 4 97 47 Regions Visited 2 Branch Regions 1 Pre-discovered Areas . | . . . Known Exits Taken . | . . . Unknown Exits Taken 2 | 1 1 . Scrap Searched 1 | . . 1 Spaces Dug . | . . . Terrain Destroyed . | . . . Melee . | . . . Projectile . | . . . AOE . | . . . Terrain Rammed . | . . . Walls Destroyed . | . . . Machines Disabled . | . . . Actions | -11 -10 -10 --------- Run | Yrd Mat Min Total 1292 | 93 885 314 Wait 140 | . 106 34 Move 996 | 79 680 237 Hop . | . . . Pick Up 20 | 4 12 4 Fast Attach 4 | 4 . . Attach 10 | 2 5 3 Detach . | . . . Swap 6 | . 5 1 Drop 5 | . 5 . Fire 111 | 4 72 35 Melee . | . . . Ram . | . . . Kick . | . . . Crush . | . . . Escape Stasis . | . . . Rewire . | . . . Trap . | . . . Miscellaneous . | . . . Route ------- -11/Scrapyard -10/Materials (discovered 5 exits: [*Mat x3] / [*Min x2]) -10/Mines (discovered 1 exit: [*Mat]) History --------- Turn | Location | Event 5 | -11/Scrapyard | Discovered new exit (range 16) 93 | -11/Scrapyard | Entered Materials 168 | -10/Materials | Discovered new exit (range 16) 303 | -10/Materials | Build established: Mutant 549 | -10/Materials | Discovered new exit (range 11) 769 | -10/Materials | Discovered new exit (range 7) 889 | -10/Materials | Discovered new exit (range 5) 1080 | -10/Materials | Lost 3 parts (1p2n) 1239 | -10/Materials | Discovered new exit (range 15) 1399 | -10/Materials | Entered Mines 1402 | -10/Mines | Met a Derelict bent on vengeance 1499 | -10/Mines | Core integrity fell below 50% 1843 | -10/Mines | Excavation squad dispatched 1843 | -10/Mines | A large section of the Mines collapsed 1899 | -10/Mines | Discovered new exit (range 12) 1946 | -10/Mines | Core integrity fell below 20% 1951 | -10/Mines | Destroyed by as-70173 with Assembled Maul Last Messages --------------- R-06 Scavenger collects Aluminum Leg. as-70173 sneak attacks. T-07 Excavator system corrupted by crushing effect. T-07 Excavator knocked back. T-07 Excavator system terminally corrupted. G-34 Mercenary destroyed. G-34 Mercenary knocked back. R-06 Scavenger collects Ion Engine. R-06 Scavenger destroyed. T-07 Excavator system corrupted by crushing effect. T-07 Excavator system terminally corrupted. G-34 Mercenary system corrupted by crushing effect. G-34 Mercenary destroyed. System corrupted: Sml. Laser failed to cycle. System corrupted: Component data lost. as-51136 destroyed. T-07 Excavator is excavating. Map ----- +----------------------------------------------------+ | ????????????????????????????????# #####??????????# | | ??????#####???????????????????### ## ##?????????# | | ?????## #????????????####??## ##????????# | | ????## #??????####### #### ##???????# | | ????# ##???### ## #???????# | | ????# ##### ## ##??????# | | ????# ##### ###????# | | ????# ## ##???# #????# | | ????# ### ##### #????## #????# | | ????# #?### ##???### ##????### ##???# | | ????# #???## #??????## ##?????## ##??# | | ????# ##???## #???????## ##?????# #### | | ????# ##???## ##????????# ###???## ## | | ???## ##???###?????????## ##???#### | | ?### #????????????????#### #??????## | | ## #???????????????????## #???????## | | # ##????????????????????# ##???????#### | | # ##????????????######???# ###????????## | | ] ##?????????????# #??# ##????????# | | !!! ####???????????????# #### #????????# | | ! ! #???????????????????# #"#### ##???????# | | !!! #????????????????????#### # #???????# | | !! #????????????????????## ## #??????? | | #???????????????????## #"# #### #?????# | | #####???????????????????##%### ??# #????# | | ??????????# #######@% # #?## #????# | | ??????????# <] [ =%a! # #??# #???# | | ??????????#! %% %==*t # ##??? #??# | | ???????????#! "########%% # #???? ### #??? | | ???????????????????????## #;# ##???? ##??####??? | | ????????????????????????######?????? ##?????????? | | ??????????????????????????###???????###??????????? | | ?????????????????????????????????????????????????? | | | | | | | | | | | | | | | | | | | | | | | | | | | | | | | | | | | +----------------------------------------------------+ Best States ------------- Heat Dissipation 25 Energy Generation 10 Energy Capacity 250 Matter Stores 300 Matter Capacity 300 Sight Range 16 Terrain Scan Density 10 Evasion (%) 50 Recoil Reduction 2 Item Schematics ----------------- None Robot Schematics ------------------ None Fabricated ------------ Nothing Alien Tech Used ----------------- None Achievements -------------- None Challenges ------------ None Game ------ Seed CoreControlInverter Manual? 0 Play Time 00:16:56 Cumulative 50.9 hours Start 2024.04.11 @ 00:10:19 End 2024.04.11 @ 00:43:38 Sessions 1 Manual Loads 0 Difficulty Rogue Special Mode None Game No. 51 Rogue 51 Adventurer 0 Explorer 0 Win Type - Total 0 Types 0/0/0/0/0/0/0/0/0 Lore% 30 Gallery% 40 Achievement% 32 Wizard Run 0 Options --------- Layout 2 ASCII 0 Keyboard 0 Movement Mouse Keybinds 0 Fullscreen 2 Font 24/Smallcaps Map View 50x44 Zoom Use 0% Tactical HUD 0 Map Filters NONE Filters NONE Steam 1 RUN: ddd19620-c8a2-41b6-a388-730db26caae5